bitfinex/quotes_ETHUSD_20240823
["timestamp","ask_amount","ask_price","bid_price","bid_amount"]
[1724445615572,5.3569,2756.6,2756.2,3.62817]
[1724445616607,2.3569,2756.6,2756.2,3.62817]
[1724445616791,5.98457,2756.6,2756.0,27.09668]
[1724445617304,2.4167,2756.5,2756.0,19.84]
[1724445617638,3.315157,2756.5,2756.0,19.84]
[1724445617994,3.315157,2756.5,2756.0,23.46842]
[1724445618398,6.942977,2756.5,2756.0,23.46842]
[1724445619608,6.04452,2756.5,2756.0,27.09678]
[1724445619809,6.04452,2756.5,2756.0,23.46836]
[1724445620016,2.4167,2756.5,2756.2,3.62818]
[1724445620213,2.4167,2756.5,2756.1,3.62831]
[1724445621691,3.0,2756.7,2756.2,3.62809]
[1724445621895,5.4137,2756.7,2756.2,3.62809]
[1724445622143,9.04124,2756.7,2756.2,3.62809]
[1724445622946,9.04124,2756.7,2756.2,7.25617]
[1724445622947,5.4137,2756.7,2756.2,7.25617]
[1724445623127,5.4137,2756.7,2756.2,3.62808]
[1724445623602,9.04122,2756.7,2756.2,3.62808]
[1724445624000,3.62767,2756.6,2756.0,29.35058]
[1724445624201,3.62767,2756.6,2756.0,23.46833]
[1724445624202,2.4477,2756.5,2756.0,23.46833]
[1724445624625,3.62807,2756.3,2756.0,19.84]
[1724445626035,9.70346,2756.5,2756.0,19.84]
[1724445626355,9.70344,2756.5,2756.0,19.84]
[1724445626548,2.4477,2756.5,2756.0,23.46842]
[1724445626756,6.62755,2756.7,2756.2,3.62817]
[1724445626757,9.07525,2756.7,2756.2,3.62817]
[1724445627854,5.4477,2756.7,2756.2,3.62811]
[1724445628050,2.4477,2756.7,2756.4,3.6279]
[1724445628759,2.4477,2756.7,2756.3,3.62804]
[1724445629112,2.4477,2756.7,2756.3,4.431024]
[1724445629317,2.4477,2756.7,2756.4,3.6279]
[1724445629659,0.05,2756.8,2756.5,6.07077]
[1724445629808,0.05,2756.8,2756.6,0.07254491]
[1724445630213,0.05,2756.8,2756.6,3.62762]
[1724445630669,0.05,2756.8,2756.7,3.62752]
[1724445630817,0.05,2756.8,2756.7,8.224854]
[1724445632512,0.05,2756.8,2756.7,4.597334]
[1724445634855,0.12009107,2756.8,2756.7,4.597334]
[1724445636874,0.12009107,2756.8,2756.7,14.283574]
[1724445637037,0.12009107,2756.8,2756.7,10.23624]
[1724445637235,0.05,2756.8,2756.7,10.23624]
[1724445637542,0.05,2756.8,2756.7,13.86376]
[1724445637950,0.05,2756.8,2756.7,10.23624]
[1724445638260,0.05,2756.8,2756.7,11.259864]
[1724445642661,0.05,2756.8,2756.7,10.709864]
[1724445643071,0.11309763,2756.8,2756.7,4.651144]
[1724445643240,0.05,2756.8,2756.7,3.62752]
[1724445643559,0.11301162,2756.8,2756.7,3.62752]
[1724445645834,0.11301162,2756.8,2756.7,7.25504]
[1724445646567,0.05,2756.8,2756.7,7.25504]
[1724445646811,0.05,2756.8,2756.7,7.980544]
[1724445648282,0.05,2756.8,2756.7,27.820544]
[1724445648497,0.11337537,2756.8,2756.7,27.820544]
[1724445648676,0.05,2756.8,2756.7,27.820544]
[1724445651738,0.11337537,2756.8,2756.7,27.820544]
[1724445653138,0.11337537,2756.8,2756.7,27.09504]
[1724445653555,0.05,2756.8,2756.7,27.09504]
[1724445653914,0.11337537,2756.8,2756.7,27.09504]
[1724445655534,0.05,2756.8,2756.7,27.04504]
[1724445657141,0.11334837,2756.8,2756.7,27.04504]
[1724445657352,0.05,2756.8,2756.7,19.84]
[1724445657555,0.37381321,2756.8,2756.7,19.84]
[1724445658383,0.11334837,2756.8,2756.7,23.46752]
[1724445660176,0.11334837,2756.8,2756.7,3.62752]
[1724445660421,0.11334837,2756.8,2756.6,19.84]
[1724445660534,0.11334837,2756.8,2756.6,23.46757]
[1724445662997,2.2587,2756.7,2756.3,19.84]
[1724445665815,3.62806,2756.3,2756.0,19.84]
[1724445666029,2.41505748,2756.2,2756.0,19.84]
[1724445666525,5.981,2756.1,2755.8,6.55365204]
[1724445666731,3.62857,2755.9,2755.6,19.84]
[1724445666867,2.4329,2755.8,2755.6,19.84]
[1724445667068,2.49492725,2755.8,2755.6,19.84]
[1724445667587,2.4329,2755.8,2755.6,23.46896]
[1724445670831,2.4265,2756.0,2755.6,23.46896]
[1724445671033,3.0,2756.2,2755.6,23.46889]
[1724445671350,2.4265,2756.2,2755.8,3.62861]
[1724445671757,0.06109778,2756.1,2755.8,3.62861]
[1724445672058,0.06109778,2756.1,2755.9,19.84]
[1724445675065,0.60985756,2756.1,2755.9,19.84]
[1724445675278,2.4265,2756.0,2755.9,19.84]
[1724445675787,2.48772203,2756.0,2755.9,19.84]
[1724445677954,2.48772203,2756.0,2755.7,19.84]
[1724445679145,2.48772203,2756.0,2755.8,3.62869]
[1724445679342,0.06122203,2756.0,2755.8,3.62869]
[1724445679745,2.3021,2756.2,2755.8,3.62869]
[1724445679983,0.05895415,2755.9,2755.8,3.62869]
[1724445680207,2.3021,2756.2,2755.8,3.62869]
[1724445680357,0.05682867,2755.9,2755.8,3.62869]
[1724445680563,2.3021,2756.2,2755.8,3.62869]
[1724445681202,0.05701126,2756.1,2755.8,3.62869]
[1724445681363,2.3021,2756.0,2755.7,19.84]
[1724445681556,0.05682867,2755.9,2755.7,19.84]
[1724445681857,2.3021,2756.0,2755.7,19.84]
[1724445682063,0.05682867,2755.9,2755.7,19.84]
[1724445682296,6.11250887,2755.8,2755.7,18.7506453]
[1724445682503,2.3021,2755.8,2755.7,18.7506453]
[1724445682658,2.35694337,2755.8,2755.7,18.7506453]
[1724445682854,5.98565337,2755.8,2755.7,18.7506453]
[1724445684023,5.98565337,2755.8,2755.6,0.803188]
[1724445684309,6.96634129,2755.8,2755.6,0.803188]
[1724445684713,3.33763129,2755.8,2755.6,0.803188]
[1724445695225,2.35694337,2755.8,2755.6,4.432148]
[1724445695366,0.05484337,2755.8,2755.6,4.432078]
[1724445695567,3.0,2756.0,2755.6,4.432078]
[1724445695783,3.0,2756.0,2755.6,19.5538333]
[1724445696035,0.911468,2755.9,2755.6,19.5538333]
[1724445698585,0.05271237,2755.8,2755.6,19.5538333]
[1724445698989,0.911468,2755.9,2755.6,19.5538333]
[1724445699171,0.05271237,2755.8,2755.6,19.5538333]
[1724445699372,0.911468,2755.9,2755.6,19.5538333]
[1724445699823,0.05271237,2755.8,2755.6,19.5538333]
[1724445701027,2.3437,2755.7,2755.6,19.5538333]
[1724445702028,6.6609168,2755.7,2755.6,19.5538333]
[1724445702376,6.71351809,2755.7,2755.6,19.5538333]
[1724445704898,3.08467809,2755.7,2755.6,19.5538333]
[1724445707753,3.08467809,2755.7,2755.6,0.803188]
[1724445708133,3.0320768,2755.7,2755.6,0.803188]
[1724445711195,2.3437,2755.7,2755.6,0.803188]
[1724445711349,3.6286,2755.9,2755.6,0.803188]
[1724445711555,5.3105,2756.0,2755.6,0.803188]
[1724445711749,8.93896,2756.0,2755.6,0.803188]
[1724445713080,0.05283934,2755.9,2755.6,0.803188]
[1724445713238,3.62878,2755.8,2755.6,0.803188]
[1724445713450,0.05293941,2755.7,2755.6,0.803188]
[1724445713682,3.62878,2755.8,2755.6,0.803188]
[1724445713887,0.05293941,2755.7,2755.6,0.803188]
[1724445714096,3.62878,2755.8,2755.6,0.803188]
[1724445714298,0.90488203,2755.7,2755.6,0.803188]
[1724445715075,3.27728203,2755.7,2755.6,0.803188]
[1724445718402,2.42533554,2755.7,2755.6,0.803188]
[1724445718972,2.3724,2755.7,2755.6,0.803188]
[1724445720350,6.00975,2755.9,2755.6,0.803188]
[1724445720673,0.05269078,2755.8,2755.6,0.803188]
[1724445729104,2.54199078,2755.8,2755.6,0.803188]
[1724445729283,0.97992908,2755.7,2755.6,0.803188]
[1724445731408,6.11803,2755.8,2755.6,0.803188]
[1724445731709,0.05226029,2755.7,2755.6,0.803188]
[1724445731909,6.11803,2755.8,2755.6,0.803188]
[1724445732381,0.05226029,2755.7,2755.6,0.803188]
[1724445732712,6.11803,2755.8,2755.6,0.803188]
[1724445733012,0.05226029,2755.7,2755.6,0.803188]
[1724445733507,2.4893,2755.8,2755.6,0.803188]
[1724445733712,0.05226029,2755.7,2755.6,0.803188]
[1724445733908,2.4893,2755.8,2755.6,0.803188]
[1724445734111,0.05226029,2755.7,2755.6,0.803188]
[1724445734301,2.4893,2755.8,2755.6,0.803188]
[1724445734503,0.05226029,2755.7,2755.6,0.803188]
[1724445734679,3.763961,2755.8,2755.6,0.803188]
[1724445734876,0.05226029,2755.7,2755.6,0.803188]
[1724445735108,3.763961,2755.8,2755.6,0.803188]
[1724445735109,2.4893,2755.8,2755.6,0.803188]
[1724445735418,0.05222073,2755.7,2755.6,0.803188]
[1724445735715,2.4893,2755.8,2755.6,0.803188]
[1724445735888,0.05224458,2755.7,2755.6,0.803188]
[1724445736099,2.4893,2755.8,2755.6,0.803188]
[1724445736270,0.05224458,2755.7,2755.6,0.803188]
[1724445736474,2.4893,2755.8,2755.6,0.803188]
[1724445736778,0.05250966,2755.7,2755.6,0.803188]
[1724445737191,2.4893,2755.8,2755.6,0.803188]
[1724445737376,0.97991397,2755.7,2755.6,0.803188]
[1724445737503,1.03276266,2755.7,2755.6,0.803188]
[1724445738950,0.05284869,2755.7,2755.6,0.803188]
[1724445739330,9.04806,2756.0,2755.6,0.803188]
[1724445739729,3.68135081,2755.9,2755.6,0.803188]
[1724445746860,0.05273081,2755.9,2755.6,4.432118]
[1724445747239,5.4195,2756.0,2755.6,4.432118]
[1724445747443,9.04794,2756.0,2755.6,0.803188]
[1724445747756,0.05068739,2755.9,2755.6,0.803188]
[1724445749386,0.05068739,2755.9,2755.6,19.5538333]
[1724445750229,3.67927739,2755.9,2755.6,19.5538333]
[1724445750475,0.05068739,2755.9,2755.6,19.5538333]
[1724445752278,3.67926739,2755.9,2755.6,19.5538333]
[1724445754790,7.30793739,2755.9,2755.6,19.5538333]
[1724445755152,3.62871,2755.8,2755.6,19.5538333]
[1724445755357,3.62871,2755.8,2755.6,0.803188]
[1724445755558,0.04860415,2755.7,2755.6,0.803188]
[1724445755943,3.62871,2755.8,2755.6,0.803188]
[1724445756287,0.04860415,2755.7,2755.6,0.803188]
[1724445756473,6.62851,2756.0,2755.6,0.803188]
[1724445756677,0.04878678,2755.9,2755.6,0.803188]
[1724445757485,3.67736678,2755.9,2755.6,0.803188]
[1724445761194,3.67736678,2755.9,2755.6,19.5538333]
[1724445761644,3.67736678,2755.9,2755.6,18.7506453]
[1724445762094,3.62872,2755.8,2755.6,18.7506453]
[1724445762277,0.36775068,2755.7,2755.6,18.7506453]
[1724445762585,0.41655169,2755.7,2755.6,18.7506453]
[1724445763501,6.726291,2756.0,2755.6,18.7506453]
[1724445763685,3.0,2756.0,2755.6,22.3795253]
[1724445763894,3.0,2756.1,2755.6,22.3795253]
[1724445764880,6.62838,2756.1,2755.6,18.7506453]
[1724445765424,0.0455169,2756.0,2755.6,18.7506453]
[1724445766718,3.6739769,2756.0,2755.6,18.7506453]
[1724445767009,3.0,2755.9,2755.6,18.7506453]
[1724445767163,3.0,2755.9,2755.7,18.7506453]
[1724445767365,0.04542114,2755.8,2755.7,18.7506453]
[1724445773119,0.04542114,2755.8,2755.6,18.7506453]
[1724445775795,3.0,2756.0,2755.6,22.3796053]
[1724445776115,0.04262413,2755.9,2755.6,22.3796053]
[1724445776778,6.62831,2756.1,2755.6,22.3796053]
[1724445777025,0.04249326,2755.8,2755.6,22.3796053]
[1724445777316,6.62831,2756.1,2755.6,24.98046583]
[1724445777520,6.62831,2756.1,2755.6,22.3796053]
[1724445777676,0.04139435,2756.0,2755.6,22.3796053]
[1724445779031,0.04139435,2756.0,2755.6,18.7506453]
[1724445779260,0.04139435,2756.0,2755.7,21.0123453]
[1724445779533,3.62794,2756.4,2755.8,3.62862]
[1724445780133,0.04062034,2756.3,2755.8,3.62862]
[1724445780710,2.3262,2756.5,2756.0,3.62834]
[1724445780915,0.03920882,2756.2,2756.0,3.62834]
[1724445781094,2.3262,2756.5,2756.0,3.62834]
[1724445781299,2.3262,2756.5,2756.1,3.62831]
[1724445781613,2.3262,2756.5,2756.0,5.89534]
[1724445781937,3.62766,2756.6,2756.0,5.89534]
[1724445782100,3.0,2756.5,2756.0,5.89534]
[1724445782301,3.0,2756.5,2756.0,9.5237]
[1724445782885,0.03941068,2756.4,2756.0,5.89534]
[1724445783086,0.03941068,2756.4,2756.0,9.52371]
[1724445784089,0.03941068,2756.4,2756.1,3.62827]
[1724445784290,0.03941068,2756.4,2756.0,5.89534]
[1724445784995,0.03941068,2756.4,2756.1,18.7506453]
[1724445785842,0.03941068,2756.4,2756.1,22.3789553]
[1724445786795,0.03941068,2756.4,2756.1,18.7506453]
[1724445787069,2.4542,2756.3,2756.1,18.7506453]
[1724445787396,0.03897739,2756.2,2756.1,18.7506453]
[1724445787900,0.03872773,2756.2,2756.1,18.7506453]
[1724445788222,2.2663,2756.2,2756.1,18.7506453]
[1724445788451,2.30502773,2756.2,2756.1,18.7506453]
[1724445789255,6.59318821,2756.2,2756.1,18.7506453]
[1724445789544,9.59318821,2756.2,2756.1,18.7506453]
[1724445791061,9.59318821,2756.2,2755.7,24.97149468]
[1724445791213,2.2904,2756.1,2755.7,24.97149468]
[1724445792454,2.2904,2756.1,2755.7,28.60031468]
[1724445793965,0.03812701,2756.0,2755.7,28.60031468]
[1724445795567,0.03812701,2756.0,2755.8,3.6287]
[1724445795930,0.03812701,2756.0,2755.9,3.62857]
[1724445796130,3.0,2756.2,2755.9,6.85144647]
[1724445796330,0.03815404,2756.0,2755.9,3.62857]
[1724445796530,2.2718,2756.3,2756.0,3.62839]
[1724445797602,0.03833662,2756.2,2756.0,3.62839]
[1724445798115,0.03824534,2756.1,2756.0,3.62839]
[1724445798321,2.2718,2756.3,2755.9,3.62855]
[1724445798625,2.38744534,2756.1,2755.8,22.3793353]
[1724445798827,2.13744534,2756.1,2755.8,22.3793353]
[1724445799124,0.0366141,2756.0,2755.8,22.3793353]
[1724445799723,0.0366141,2756.0,2755.8,18.7506453]
[1724445802696,0.0366141,2756.0,2755.8,22.3792553]
[1724445802899,0.0366141,2756.0,2755.8,3.62861]
[1724445803817,0.0366141,2756.0,2755.8,3.6287]
[1724445810539,0.0366141,2756.0,2755.6,7.25785]
[1724445810689,0.0366141,2756.0,2755.7,3.62879]
[1724445814391,0.0366141,2756.0,2755.8,0.725768]
[1724445814590,0.0366141,2756.0,2755.7,3.62879]
[1724445814829,0.0366141,2756.0,2755.8,3.62868]
[1724445815136,0.0366141,2756.0,2755.8,7.25731]
[1724445815290,0.0366141,2756.0,2755.9,3.62857]
[1724445815688,0.03518593,2756.0,2755.9,3.62857]
[1724445815922,0.03518593,2756.0,2755.9,4.59315]
[1724445816294,5.474,2756.3,2755.9,4.59315]
[1724445816494,0.03518593,2756.0,2755.9,3.62857]
[1724445816719,3.0,2756.2,2755.9,3.62857]
[1724445816919,0.03534418,2756.0,2755.9,3.62857]
[1724445817230,2.474,2756.3,2755.9,3.62857]
[1724445817231,3.0,2756.2,2755.9,3.62857]
[1724445817434,2.474,2756.3,2755.9,3.62857]
[1724445818011,0.03542603,2756.2,2755.9,3.62857]
[1724445818391,3.0,2756.2,2756.0,3.62835]
[1724445818739,0.03533475,2756.1,2756.0,3.62835]
[1724445819418,3.0,2756.4,2756.0,3.62835]
[1724445819605,0.03533475,2756.1,2756.0,3.62835]
[1724445819810,3.0,2756.4,2756.0,3.62835]
[1724445820138,0.03545089,2756.1,2756.0,3.62835]
[1724445820326,3.0,2756.4,2756.0,4.450505]
[1724445820490,0.03545089,2756.1,2756.0,3.62835]
[1724445820693,3.0,2756.4,2756.0,3.62835]
[1724445820894,0.03545089,2756.1,2756.0,3.62835]
[1724445821095,2.3119,2756.5,2756.1,3.62824]
[1724445821306,3.0,2756.6,2756.3,3.62795]
[1724445821536,2.3119,2756.7,2756.5,3.62771]
[1724445821737,0.05,2756.8,2756.5,3.62771]
[1724445825338,0.03385501,2756.7,2756.5,3.62771]
[1724445825699,0.05,2756.8,2756.5,3.62771]
[1724445825938,0.03298633,2756.6,2756.5,3.62771]
[1724445826141,0.05,2756.8,2756.5,3.62771]
[1724445826354,0.03298633,2756.6,2756.5,3.62771]
[1724445827594,0.05,2756.8,2756.5,3.62771]
[1724445827728,0.03298633,2756.6,2756.5,3.62771]
[1724445827935,0.05,2756.8,2756.5,4.6195755]
[1724445828135,0.03298633,2756.6,2756.5,3.62771]
[1724445828863,0.05,2756.8,2756.5,3.62771]
[1724445829168,0.03298633,2756.6,2756.5,3.62771]
[1724445829348,0.05,2756.8,2756.5,3.62771]
[1724445829520,0.03298633,2756.6,2756.5,3.62771]
[1724445830041,0.03330668,2756.6,2756.5,3.62771]
[1724445830216,0.05,2756.8,2756.5,3.62771]
[1724445830418,0.03339795,2756.7,2756.5,3.62771]
[1724445830849,0.03344506,2756.6,2756.5,3.62771]
[1724445831259,2.38009795,2756.9,2756.5,3.62771]
[1724445831458,0.03233179,2756.6,2756.5,3.62771]
[1724445831659,2.38009795,2756.9,2756.5,3.62771]
[1724445831966,0.03233179,2756.6,2756.5,3.62771]
[1724445833126,2.38009795,2756.9,2756.5,3.62771]
[1724445833327,0.03233179,2756.6,2756.5,3.62771]
[1724445834024,2.38009795,2756.9,2756.5,3.62771]
[1724445834274,0.03238893,2756.6,2756.5,9.70319]
[1724445834448,0.03238893,2756.6,2756.5,13.33097]
[1724445834629,2.3159,2757.5,2757.2,3.62684]
[1724445834825,3.62611,2757.8,2757.3,3.62666]
[1724445834826,2.3807,2757.7,2757.3,3.62666]
[1724445835265,2.3807,2757.7,2757.2,3.62684]
[1724445835462,2.981378,2757.7,2757.2,3.62684]
[1724445835622,3.62661,2757.4,2756.9,3.62722]
[1724445835828,3.627,2757.1,2756.4,2.319]
[1724445836058,2.3807,2757.0,2756.5,3.6277]
[1724445836256,2.3807,2757.0,2756.6,3.62764]
[1724445836452,2.3807,2757.0,2756.5,3.6277]
[1724445836655,2.3807,2757.0,2756.7,3.62751]
[1724445836860,2.3807,2757.0,2756.6,3.62758]
[1724445837079,2.3807,2757.0,2756.7,3.62751]
[1724445840400,3.62689,2757.2,2756.8,3.62738]
[1724445840401,2.3875,2757.2,2756.8,3.62738]
[1724445840700,2.3875,2757.2,2756.7,3.62751]
[1724445840701,6.01437,2757.2,2756.7,3.62751]
[1724445840857,6.615789,2757.2,2756.7,3.62751]
[1724445842468,2.988919,2757.2,2756.8,3.62738]
[1724445842663,2.3875,2757.2,2756.8,3.62738]
[1724445844568,6.01436,2757.2,2756.7,3.62751]
[1724445844922,2.3875,2757.2,2756.8,3.62732]
[1724445849877,2.3875,2757.2,2757.0,3.62712]
[1724445850085,2.92625,2757.2,2756.8,3.62731]
[1724445850308,2.92625,2757.2,2756.8,7.25461]
[1724445850521,2.92481787,2757.2,2756.8,7.25461]
[1724445850815,2.92481787,2757.2,2756.8,7.25462]
[1724445851017,2.92481787,2757.2,2756.8,7.25461]
[1724445851218,2.92481787,2757.2,2756.8,3.6273]
[1724445852030,2.92481787,2757.2,2756.8,7.25462]
[1724445853196,2.92481787,2757.2,2756.8,3.6273]
[1724445854630,2.92481787,2757.2,2756.8,7.25461]
[1724445854840,2.92481787,2757.2,2756.8,3.6273]
[1724445857827,2.38606787,2757.2,2756.9,3.62725]
[1724445858026,2.38606787,2757.2,2756.8,7.25461]
[1724445858826,2.38606787,2757.2,2756.9,3.62724]
[1724445859645,6.6266,2757.4,2756.8,3.6273]
[1724445859830,2.2943,2757.3,2756.8,3.6273]
[1724445860771,2.2943,2757.3,2756.8,7.25462]
[1724445860954,2.2943,2757.3,2756.8,3.6273]
[1724445861339,5.92105,2757.3,2756.8,3.6273]
[1724445862520,2.2943,2757.3,2756.8,3.6273]
[1724445864876,2.2943,2757.3,2756.8,7.25462]
[1724445865369,2.2943,2757.3,2756.8,3.6273]
[1724445866589,2.2943,2757.3,2756.7,18.7506453]
[1724445866590,2.2704,2756.9,2756.7,18.7506453]
[1724445866728,5.2704,2756.9,2756.7,18.7506453]
[1724445867185,2.2704,2756.9,2756.7,18.7506453]
[1724445867823,3.62667,2757.4,2756.7,18.7506453]
[1724445867824,3.62657,2757.5,2756.9,3.62714]
[1724445868223,3.6266,2757.4,2756.9,3.62714]
[1724445871731,2.2704,2757.3,2756.9,3.62714]
[1724445876351,2.2704,2757.3,2757.0,3.62712]
[1724445879173,2.2704,2757.3,2757.1,3.62693]
[1724445879365,2.2704,2757.3,2757.2,3.62686]
[1724445880340,5.468,2757.5,2757.3,3.62666]
[1724445880506,2.468,2757.7,2757.4,3.6266]
[1724445880663,2.468,2757.7,2757.3,3.62666]
[1724445881489,2.468,2757.7,2757.5,3.62644]
[1724445882845,2.468,2757.7,2757.3,3.62663]
[1724445884395,2.468,2757.7,2757.4,3.6266]
[1724445885897,2.468,2757.7,2757.6,3.62634]
[1724445886104,2.468,2757.7,2757.5,3.62647]
[1724445886250,2.468,2757.7,2757.5,3.62639]
[1724445887205,2.468,2757.7,2757.5,7.25278]
[1724445887584,2.468,2757.7,2757.6,3.62634]
[1724445888172,3.62572,2758.1,2757.6,3.62634]
[1724445888499,4.350839,2758.1,2757.6,3.62634]
[1724445892372,2.4224,2758.0,2757.6,3.62634]
[1724445892572,9.67338,2758.3,2757.7,3.6262]
[1724445892773,3.0,2758.2,2757.7,3.6262]
[1724445894917,6.62555,2758.2,2757.7,3.6262]
[1724445896614,2.4928,2758.1,2757.7,3.6262]
[1724445899412,6.11849,2758.1,2757.7,3.6262]
[1724445900518,6.11849,2758.1,2757.6,3.62633]
[1724445900684,3.0,2758.0,2757.6,3.62633]
[1724445901285,3.62609,2757.8,2757.3,7.25329]
[1724445901627,3.62609,2757.8,2757.3,3.62662]
[1724445902183,3.62609,2757.8,2757.3,7.25329]
[1724445902415,3.62609,2757.8,2757.3,3.62662]
[1724445902599,3.62609,2757.8,2757.2,3.62675]
[1724445902991,3.62622,2757.7,2757.2,3.62675]
[1724445905319,3.62608,2757.8,2757.3,3.62672]
[1724445905525,3.62608,2757.8,2757.3,3.62666]
[1724445905822,7.537749,2758.0,2757.5,3.62643]
[1724445905823,3.0,2758.0,2757.5,3.62643]
[1724445906182,6.62575,2758.1,2757.5,3.62639]
[1724445906696,2.4214,2757.9,2757.3,7.25326]
[1724445907026,3.62669,2757.4,2756.8,3.62731]
[1724445907546,3.62669,2757.4,2756.9,3.62725]
[1724445909042,3.0,2757.9,2757.4,2.3152]
[1724445910096,3.0,2757.9,2757.4,5.94178]
[1724445910312,3.662591,2757.9,2757.4,5.94178]
[1724445911141,3.0,2757.9,2757.5,3.62647]
[1724445911443,3.62557,2758.2,2757.7,3.62619]
[1724445911954,3.62557,2758.2,2757.5,3.62647]
[1724445911955,3.62582,2758.0,2757.5,3.62647]
[1724445912231,3.62582,2758.0,2757.5,3.62639]
[1724445912525,7.25124,2758.2,2757.5,7.25277]
[1724445912733,3.0,2758.1,2757.6,3.62631]
[1724445913187,6.62573,2758.1,2757.5,4.30275649]
[1724445913385,6.62573,2758.1,2757.5,7.92915649]
[1724445913634,6.62573,2758.1,2757.5,4.30275649]
[1724445914233,6.62573,2758.1,2757.6,3.62632]
[1724445915022,6.05548,2758.0,2757.2,3.62679]
[1724445915222,7.25232,2757.8,2757.2,3.62679]
[1724445915428,3.62615,2757.8,2757.2,3.62679]
[1724445915632,3.62615,2757.8,2757.3,3.62665]
[1724445916336,9.68141,2758.0,2757.3,3.62665]
[1724445916541,6.62594,2757.9,2757.4,3.62659]
[1724445918212,6.62594,2757.9,2757.4,7.25312]
[1724445918412,6.62594,2757.9,2757.4,3.62653]
[1724445919247,6.62594,2757.9,2757.4,7.25305]
[1724445919548,3.0,2757.9,2757.4,3.62652]
[1724445920543,6.62596,2757.9,2757.4,3.62652]
[1724445921321,6.37596,2757.9,2757.4,3.62652]
[1724445921700,2.75,2757.9,2757.4,7.25305]
[1724445922050,2.4296,2758.0,2757.5,3.62645]
[1724445923017,3.62572,2758.1,2757.5,6.10785]
[1724445923409,3.0,2758.0,2757.6,3.62633]
[1724445923605,3.0,2758.0,2757.6,3.62624]
[1724445923927,2.3215,2758.2,2757.7,3.6262]
[1724445924127,5.3215,2758.2,2757.7,3.6262]
[1724445925103,8.94709,2758.2,2757.6,3.62624]
[1724445925342,3.6259,2758.0,2757.4,3.62658]
[1724445925546,3.6259,2758.0,2757.4,3.62653]
[1724445925761,3.62628,2757.7,2757.2,3.62676]
[1724445926063,2.3215,2757.3,2756.9,3.6272]
[1724445926921,2.3215,2757.3,2756.9,3.62717]
[1724445927675,2.3215,2757.3,2756.9,7.25434]
[1724445928007,2.3215,2757.3,2757.0,3.62712]
[1724445928210,2.3215,2757.3,2756.9,3.62717]
[1724445929508,2.3215,2757.0,2755.9,3.62853]
[1724445929708,2.3215,2757.0,2755.8,3.62869]
[1724445929709,2.3215,2756.4,2755.8,3.62869]
[1724445929941,2.3215,2756.4,2755.9,3.62856]
[1724445930144,5.3215,2756.4,2755.9,3.62856]
[1724445930706,6.216437,2756.4,2755.5,3.62908]
[1724445931019,6.216437,2756.4,2755.7,3.62872]
[1724445931020,0.55,2756.3,2755.7,3.62872]
[1724445931365,3.55,2756.3,2755.7,3.62872]
[1724445935054,3.55,2756.3,2755.8,3.62869]
[1724445935516,3.55,2756.3,2755.7,3.62872]
[1724445936282,3.0,2756.3,2755.9,2.2974]
[1724445936436,2.4433,2756.6,2756.1,3.62827]
[1724445936636,2.4433,2757.1,2756.6,3.62765]
[1724445936849,2.4433,2757.1,2756.4,2.2974]
[1724445937069,2.4433,2757.1,2756.7,3.62743]
[1724445938074,2.4433,2757.1,2756.6,3.62764]
[1724445938280,2.4433,2757.1,2756.4,5.92523]
[1724445938567,2.4433,2757.1,2756.4,3.62783]
[1724445939037,5.4433,2757.1,2756.5,3.62768]
[1724445939571,3.62721,2757.0,2756.3,3.62798]
[1724445939743,0.55,2756.9,2756.2,3.62807]
[1724445940255,0.55,2756.9,2756.4,3.62789]
[1724445941038,7.17727,2756.9,2756.2,3.62807]
[1724445941388,1.080448,2756.8,2756.3,3.62802]
[1724445942252,1.080448,2756.8,2756.0,3.62837]
[1724445942475,1.080448,2756.8,2756.2,3.62816]
[1724445943048,2.4433,2756.7,2756.2,3.62816]
[1724445944154,2.4433,2756.7,2756.2,3.62808]
[1724445944578,2.4433,2756.7,2756.2,7.25618]
[1724445944774,2.4433,2756.7,2756.2,3.62808]
[1724445947144,2.4433,2756.7,2756.0,3.62836]
[1724445947145,3.5134138,2756.7,2756.0,3.62836]
[1724445947443,3.5134138,2756.7,2755.9,3.62855]
[1724445947444,5.95775,2756.5,2755.9,3.62855]
[1724445948044,3.0,2756.4,2755.9,7.25705]
[1724445948196,3.0,2756.4,2755.9,3.6285]
[1724445948512,3.0,2756.4,2756.0,3.62837]
[1724445948993,5.3299,2756.5,2756.0,3.62837]
[1724445951997,5.3299,2756.5,2756.1,3.62831]
[1724445952651,5.3299,2756.5,2756.0,3.62835]
[1724445952800,5.3299,2756.5,2755.9,3.62844]
[1724445953009,5.3299,2756.5,2755.9,4.220684]
[1724445953660,3.0,2756.5,2756.4,3.62792]
[1724445953796,2.3781,2756.9,2756.4,3.62792]
[1724445954154,5.3781,2756.9,2756.4,3.62792]
[1724445954447,2.3781,2756.6,2756.1,3.62824]
[1724445954650,2.3781,2756.6,2756.2,3.62813]
[1724445954651,5.3781,2756.6,2756.2,3.62813]
[1724445954857,5.3781,2756.6,2756.1,3.62824]
[1724445954992,2.3781,2756.6,2756.1,3.62824]
[1724445955394,2.3781,2756.6,2756.1,7.25648]
[1724445955637,2.3781,2756.6,2756.1,7.25647]
[1724445955801,3.278659,2756.6,2756.1,3.62823]
[1724445955997,3.278659,2756.6,2756.0,3.62836]
[1724445958300,6.906339,2756.6,2756.0,3.62836]
[1724445958505,3.62791,2756.5,2755.9,3.62845]
[1724445958713,4.9563349,2756.5,2755.9,3.62845]
[1724445959831,4.9563349,2756.5,2756.0,3.62843]
[1724445959832,3.62791,2756.5,2756.0,3.62843]
[1724445961834,2.4686,2757.0,2756.1,2.2573]